[Event "Titled Tuesday Blitz August 31 2021"]
[White "Mokshanov, Alexey"]
[Black "LEGENYA1998"]
[WhiteFideId "24121657"]
[WhiteElo "2262"]
[BlackElo "2419"]
[Result "1-0"]
[Round "02"]
[TimeControl "180+1"]
[Date "2021.08.31"]
[WhiteClock "0:00:51"]
[BlackClock "0:01:13"]

1. e4 {[%clk 0:03:00]}  d5 {[%clk 0:02:56]} 2. exd5 {[%clk 0:03:00]}  Qxd5 {[%clk 0:02:57]} 3. Nc3 {[%clk 0:03:00]}  Qa5 {[%clk 0:02:57]} 4. Bc4 {[%clk 0:03:00]}  Nf6 {[%clk 0:02:57]} 5. Nge2 {[%clk 0:03:00]}  g6 {[%clk 0:02:54]} 6. O-O {[%clk 0:03:00]}  Bg7 {[%clk 0:02:55]} 7. d3 {[%clk 0:02:58]}  Nc6 {[%clk 0:02:52]} 8. a3 {[%clk 0:02:57]}  Bg4 {[%clk 0:02:52]} 9. f3 {[%clk 0:02:55]}  Bd7 {[%clk 0:02:52]} 10. Kh1 {[%clk 0:02:44]}  O-O {[%clk 0:02:40]} 11. Bf4 {[%clk 0:02:41]}  e5 {[%clk 0:02:37]} 12. b4 {[%clk 0:02:41]}  Nxb4 {[%clk 0:02:04]} 13. axb4 {[%clk 0:02:39]}  Qxb4 {[%clk 0:02:04]} 14. Bxe5 {[%clk 0:02:36]}  Rfe8 {[%clk 0:02:03]} 15. Bxf6 {[%clk 0:02:32]}  Bxf6 {[%clk 0:02:03]} 16. Nd5 {[%clk 0:02:32]}  Qd6 {[%clk 0:02:02]} 17. Nxf6+ {[%clk 0:02:32]}  Qxf6 {[%clk 0:02:03]} 18. Ng3 {[%clk 0:02:31]}  a5 {[%clk 0:01:58]} 19. Ne4 {[%clk 0:02:27]}  Qg7 {[%clk 0:01:56]} 20. Ng5 {[%clk 0:02:23]}  Re7 {[%clk 0:01:52]} 21. Re1 {[%clk 0:02:16]}  Rae8 {[%clk 0:01:51]} 22. Rxe7 {[%clk 0:02:12]}  Rxe7 {[%clk 0:01:52]} 23. Rxa5 {[%clk 0:01:56]}  h6 {[%clk 0:01:52]} 24. Ra8+ {[%clk 0:01:55]}  Be8 {[%clk 0:01:50]} 25. Nxf7 {[%clk 0:01:46]}  Kh7 {[%clk 0:01:50]} 26. Nd8 {[%clk 0:01:31]}  Qe5 {[%clk 0:01:49]} 27. Ne6 {[%clk 0:01:25]}  Rxe6 {[%clk 0:01:40]} 28. Bxe6 {[%clk 0:01:25]}  Qxe6 {[%clk 0:01:41]} 29. Qa1 {[%clk 0:01:17]}  h5 {[%clk 0:01:37]} 30. h3 {[%clk 0:01:18]}  h4 {[%clk 0:01:36]} 31. Qc3 {[%clk 0:01:10]}  c6 {[%clk 0:01:27]} 32. Ra1 {[%clk 0:01:04]}  Bf7 {[%clk 0:01:23]} 33. Re1 {[%clk 0:01:04]}  Qd6 {[%clk 0:01:21]} 34. Qe5 {[%clk 0:01:03]}  Qb4 {[%clk 0:01:19]} 35. Qe4 {[%clk 0:00:57]}  Qxe4 {[%clk 0:01:18]} 36. Rxe4 {[%clk 0:00:51]}  g5 {[%clk 0:01:19]} 37. Re7 {[%clk 0:00:51]}  Kg6 {[%clk 0:01:19]} 38. Rxb7 {[%clk 0:00:52]}  Be6 {[%clk 0:01:16]} 39. Kg1 {[%clk 0:00:52]}  Kf5 {[%clk 0:01:15]} 40. Rc7 {[%clk 0:00:51]}  Bd5 {[%clk 0:01:14]} 41. c4 {[%clk 0:00:51]}  Be6 {[%clk 0:01:13]} 42. Rxc6 {[%clk 0:00:51]} 1-0


[Site "https://www.chess.com"]

[Event "Titled Tuesday Blitz August 31 2021"]
[White "Murzin, Volodar"]
[Black "Al-Tarboush, Ward"]
[WhiteFideId "44155573"]
[BlackFideId "7601450"]
[WhiteElo "2541"]
[BlackElo "2319"]
[Result "1-0"]
[Round "02"]
[TimeControl "180+1"]
[Date "2021.08.31"]
[WhiteClock "0:00:02"]
[BlackClock "0:00:02"]

1. e4 {[%clk 0:03:00]}  b6 {[%clk 0:02:59]} 2. d4 {[%clk 0:02:57]}  Bb7 {[%clk 0:02:59]} 3. Nc3 {[%clk 0:02:56]}  e6 {[%clk 0:02:59]} 4. Nf3 {[%clk 0:02:55]}  Bb4 {[%clk 0:02:58]} 5. Bd3 {[%clk 0:02:53]}  Nf6 {[%clk 0:02:58]} 6. Qe2 {[%clk 0:02:48]}  d5 {[%clk 0:02:58]} 7. exd5 {[%clk 0:02:41]}  Qxd5 {[%clk 0:02:56]} 8. O-O {[%clk 0:02:38]}  Bxc3 {[%clk 0:02:55]} 9. bxc3 {[%clk 0:02:38]}  Qh5 {[%clk 0:02:56]} 10. Ne5 {[%clk 0:02:34]}  Qxe2 {[%clk 0:02:53]} 11. Bxe2 {[%clk 0:02:35]}  O-O {[%clk 0:02:52]} 12. Ba3 {[%clk 0:02:31]}  Rc8 {[%clk 0:02:50]} 13. c4 {[%clk 0:02:22]}  Nbd7 {[%clk 0:02:49]} 14. Nxd7 {[%clk 0:02:17]}  Nxd7 {[%clk 0:02:49]} 15. Rfd1 {[%clk 0:02:17]}  c6 {[%clk 0:02:47]} 16. Bd6 {[%clk 0:02:12]}  Nf6 {[%clk 0:02:46]} 17. Bf3 {[%clk 0:02:09]}  Rd8 {[%clk 0:02:44]} 18. c5 {[%clk 0:02:08]}  b5 {[%clk 0:02:33]} 19. a4 {[%clk 0:01:46]}  a6 {[%clk 0:02:32]} 20. Rab1 {[%clk 0:01:14]}  Nd5 {[%clk 0:02:32]} 21. Rd3 {[%clk 0:01:11]}  Rd7 {[%clk 0:02:29]} 22. Rdb3 {[%clk 0:01:06]}  Bc8 {[%clk 0:02:27]} 23. Be2 {[%clk 0:00:49]}  b4 {[%clk 0:01:55]} 24. a5 {[%clk 0:00:31]}  Nc3 {[%clk 0:01:51]} 25. Bf3 {[%clk 0:00:30]}  Nxb1 {[%clk 0:01:19]} 26. Bxc6 {[%clk 0:00:26]}  Nd2 {[%clk 0:01:18]} 27. Rd3 {[%clk 0:00:15]}  Nc4 {[%clk 0:01:18]} 28. Bxa8 {[%clk 0:00:12]}  Nxd6 {[%clk 0:01:17]} 29. cxd6 {[%clk 0:00:13]}  Rxd6 {[%clk 0:01:18]} 30. f3 {[%clk 0:00:08]}  Kf8 {[%clk 0:01:16]} 31. Kf2 {[%clk 0:00:08]}  Ke7 {[%clk 0:01:16]} 32. Ke3 {[%clk 0:00:08]}  Kd8 {[%clk 0:01:16]} 33. Rb3 {[%clk 0:00:08]}  e5 {[%clk 0:00:37]} 34. dxe5 {[%clk 0:00:06]}  Rh6 {[%clk 0:00:37]} 35. h3 {[%clk 0:00:03]}  Bf5 {[%clk 0:00:37]} 36. Be4 {[%clk 0:00:02]}  Bxe4 {[%clk 0:00:31]} 37. Kxe4 {[%clk 0:00:03]}  Rc6 {[%clk 0:00:31]} 38. Rxb4 {[%clk 0:00:02]}  Rxc2 {[%clk 0:00:31]} 39. Rb6 {[%clk 0:00:03]}  Rxg2 {[%clk 0:00:25]} 40. Rxa6 {[%clk 0:00:03]}  Re2+ {[%clk 0:00:23]} 41. Kf4 {[%clk 0:00:03]}  Ra2 {[%clk 0:00:19]} 42. Ra7 {[%clk 0:00:03]}  Ke8 {[%clk 0:00:12]} 43. Kf5 {[%clk 0:00:04]}  Ra3 {[%clk 0:00:06]} 44. f4 {[%clk 0:00:03]}  Rxh3 {[%clk 0:00:04]} 45. a6 {[%clk 0:00:02]}  Ra3 {[%clk 0:00:04]} 46. Ke4 {[%clk 0:00:03]}  Ra5 {[%clk 0:00:03]} 47. f5 {[%clk 0:00:02]}  h5 {[%clk 0:00:02]} 48. e6 {[%clk 0:00:02]}  fxe6 {[%clk 0:00:02]} 49. fxe6 {[%clk 0:00:03]}  h4 {[%clk 0:00:02]} 50. Kf3 {[%clk 0:00:03]}  g5 {[%clk 0:00:01]} 51. Kg4 {[%clk 0:00:03]}  Ra4+ {[%clk 0:00:02]} 52. Kxg5 {[%clk 0:00:03]}  h3 {[%clk 0:00:02]} 53. Kf6 {[%clk 0:00:02]}  Rf4+ {[%clk 0:00:02]} 54. Ke5 {[%clk 0:00:01]}  Rh4 {[%clk 0:00:02]} 55. Ra8+ {[%clk 0:00:01]}  Ke7 {[%clk 0:00:02]} 56. Ra7+ {[%clk 0:00:02]} 1-0


[Site "https://www.chess.com"]

[Event "Titled Tuesday Blitz August 31 2021"]
[White "Ovchinnikov, Vsevolod"]
[Black "Ozen, Bahadir"]
[WhiteFideId "24176842"]
[BlackFideId "6337058"]
[WhiteElo "2376"]
[BlackElo "2503"]
[Result "1-0"]
[Round "02"]
[TimeControl "180+1"]
[Date "2021.08.31"]
[WhiteClock "0:00:13"]
[BlackClock "0:00:10"]

1. d4 {[%clk 0:03:00]}  b5 {[%clk 0:02:59]} 2. e4 {[%clk 0:02:59]}  Bb7 {[%clk 0:03:00]} 3. Nd2 {[%clk 0:03:00]}  a6 {[%clk 0:02:59]} 4. Ngf3 {[%clk 0:03:00]}  e6 {[%clk 0:02:59]} 5. Bd3 {[%clk 0:03:00]}  c5 {[%clk 0:02:58]} 6. c3 {[%clk 0:03:01]}  Nf6 {[%clk 0:02:55]} 7. O-O {[%clk 0:03:00]}  d5 {[%clk 0:02:53]} 8. e5 {[%clk 0:02:59]}  Nfd7 {[%clk 0:02:54]} 9. Re1 {[%clk 0:02:46]}  Nc6 {[%clk 0:02:52]} 10. Nf1 {[%clk 0:02:46]}  Be7 {[%clk 0:02:48]} 11. Ng3 {[%clk 0:02:46]}  h5 {[%clk 0:02:40]} 12. h3 {[%clk 0:02:35]}  g6 {[%clk 0:02:06]} 13. Be3 {[%clk 0:02:32]}  Qb6 {[%clk 0:02:03]} 14. a3 {[%clk 0:02:25]}  O-O-O {[%clk 0:02:01]} 15. b4 {[%clk 0:02:21]}  cxd4 {[%clk 0:01:53]} 16. cxd4 {[%clk 0:02:21]}  Kb8 {[%clk 0:01:53]} 17. Qd2 {[%clk 0:02:07]}  Rc8 {[%clk 0:01:53]} 18. Bf1 {[%clk 0:02:02]}  Qd8 {[%clk 0:01:52]} 19. Red1 {[%clk 0:01:57]}  Nb6 {[%clk 0:01:52]} 20. Bg5 {[%clk 0:01:55]}  Nc4 {[%clk 0:01:51]} 21. Qf4 {[%clk 0:01:56]}  Rf8 {[%clk 0:01:43]} 22. h4 {[%clk 0:01:36]}  Rc7 {[%clk 0:01:38]} 23. Ne2 {[%clk 0:01:20]}  Nb2 {[%clk 0:01:35]} 24. Rd2 {[%clk 0:01:19]}  Nc4 {[%clk 0:01:35]} 25. Rdd1 {[%clk 0:01:20]}  Nb2 {[%clk 0:01:35]} 26. Rdb1 {[%clk 0:01:16]}  Nc4 {[%clk 0:01:34]} 27. Nc1 {[%clk 0:01:13]}  f6 {[%clk 0:01:30]} 28. exf6 {[%clk 0:01:12]}  Bxf6 {[%clk 0:01:31]} 29. Bxf6 {[%clk 0:01:04]}  Qxf6 {[%clk 0:01:28]} 30. Qxf6 {[%clk 0:01:05]}  Rxf6 {[%clk 0:01:29]} 31. Nb3 {[%clk 0:01:05]}  Rcf7 {[%clk 0:01:19]} 32. Re1 {[%clk 0:01:03]}  Bc8 {[%clk 0:01:16]} 33. Ng5 {[%clk 0:00:43]}  Re7 {[%clk 0:01:17]} 34. g3 {[%clk 0:00:40]}  e5 {[%clk 0:01:06]} 35. dxe5 {[%clk 0:00:40]}  Rxe5 {[%clk 0:01:07]} 36. Bg2 {[%clk 0:00:37]}  Rxe1+ {[%clk 0:00:55]} 37. Rxe1 {[%clk 0:00:38]}  Nxa3 {[%clk 0:00:55]} 38. Bxd5 {[%clk 0:00:37]}  Nxb4 {[%clk 0:00:56]} 39. Bg2 {[%clk 0:00:29]}  Nc4 {[%clk 0:00:52]} 40. Re8 {[%clk 0:00:28]}  Nd6 {[%clk 0:00:52]} 41. Rg8 {[%clk 0:00:24]}  Kc7 {[%clk 0:00:43]} 42. Nd4 {[%clk 0:00:20]}  a5 {[%clk 0:00:37]} 43. Ne4 {[%clk 0:00:20]}  Nxe4 {[%clk 0:00:37]} 44. Bxe4 {[%clk 0:00:21]}  a4 {[%clk 0:00:36]} 45. Nxb5+ {[%clk 0:00:20]}  Kb6 {[%clk 0:00:36]} 46. Nc3 {[%clk 0:00:18]}  Kc7 {[%clk 0:00:19]} 47. Nxa4 {[%clk 0:00:17]}  Bf5 {[%clk 0:00:16]} 48. Bxf5 {[%clk 0:00:17]}  Rxf5 {[%clk 0:00:17]} 49. Rxg6 {[%clk 0:00:17]}  Nd3 {[%clk 0:00:14]} 50. f4 {[%clk 0:00:17]}  Ra5 {[%clk 0:00:13]} 51. Nc3 {[%clk 0:00:17]}  Rc5 {[%clk 0:00:13]} 52. Ne4 {[%clk 0:00:17]}  Rc2 {[%clk 0:00:14]} 53. Rg5 {[%clk 0:00:14]}  Kb8 {[%clk 0:00:12]} 54. Kf1 {[%clk 0:00:14]}  Kc8 {[%clk 0:00:09]} 55. Rxh5 {[%clk 0:00:13]}  Kd8 {[%clk 0:00:10]} 56. Rd5+ {[%clk 0:00:13]} 1-0


[Site "https://www.chess.com"]

[Event "Titled Tuesday Blitz August 31 2021"]
[White "Ovezdurdyyeva, Jemal"]
[Black "Khoroshev, Nikita"]
[WhiteFideId "14001888"]
[BlackFideId "14200287"]
[WhiteElo "1946"]
[BlackElo "2328"]
[Result "0-1"]
[Round "02"]
[TimeControl "180+1"]
[Date "2021.08.31"]
[WhiteClock "0:00:26"]
[BlackClock "0:00:09"]

1. e4 {[%clk 0:03:00]}  e5 {[%clk 0:02:58]} 2. Nf3 {[%clk 0:03:00]}  Nc6 {[%clk 0:02:58]} 3. Bb5 {[%clk 0:02:59]}  Nf6 {[%clk 0:02:57]} 4. O-O {[%clk 0:02:58]}  Nxe4 {[%clk 0:02:54]} 5. d4 {[%clk 0:02:48]}  Nd6 {[%clk 0:02:30]} 6. Bxc6 {[%clk 0:02:45]}  dxc6 {[%clk 0:02:31]} 7. dxe5 {[%clk 0:02:43]}  Nf5 {[%clk 0:02:32]} 8. Qxd8+ {[%clk 0:02:42]}  Kxd8 {[%clk 0:02:32]} 9. Nc3 {[%clk 0:02:41]}  Be6 {[%clk 0:02:32]} 10. Ng5 {[%clk 0:02:36]}  Be7 {[%clk 0:02:30]} 11. Nxe6+ {[%clk 0:02:31]}  fxe6 {[%clk 0:02:31]} 12. Ne4 {[%clk 0:02:22]}  Ke8 {[%clk 0:02:23]} 13. Bf4 {[%clk 0:02:12]}  Nd4 {[%clk 0:02:19]} 14. g3 {[%clk 0:02:07]}  Nxc2 {[%clk 0:02:05]} 15. Rad1 {[%clk 0:02:05]}  Nb4 {[%clk 0:02:05]} 16. a3 {[%clk 0:02:01]}  Nd5 {[%clk 0:02:04]} 17. Bg5 {[%clk 0:01:58]}  Rf8 {[%clk 0:01:53]} 18. Rd3 {[%clk 0:01:43]}  Rd8 {[%clk 0:01:40]} 19. Rfd1 {[%clk 0:01:37]}  h6 {[%clk 0:01:21]} 20. Bxe7 {[%clk 0:01:33]}  Kxe7 {[%clk 0:01:21]} 21. f4 {[%clk 0:01:28]}  Rf5 {[%clk 0:01:14]} 22. h4 {[%clk 0:01:22]}  Rg8 {[%clk 0:01:06]} 23. b4 {[%clk 0:01:08]}  Ra8 {[%clk 0:00:48]} 24. Rc1 {[%clk 0:00:52]}  a5 {[%clk 0:00:45]} 25. b5 {[%clk 0:00:49]}  Rd8 {[%clk 0:00:18]} 26. bxc6 {[%clk 0:00:47]}  b6 {[%clk 0:00:18]} 27. Rcd1 {[%clk 0:00:42]}  Rff8 {[%clk 0:00:19]} 28. Kg2 {[%clk 0:00:38]}  Rxf4 {[%clk 0:00:17]} 29. Nf2 {[%clk 0:00:31]}  Rf5 {[%clk 0:00:16]} 30. Re1 {[%clk 0:00:30]}  Rdf8 {[%clk 0:00:14]} 31. Rd2 {[%clk 0:00:27]}  Rf3 {[%clk 0:00:14]} 32. a4 {[%clk 0:00:27]}  Ra3 {[%clk 0:00:11]} 33. Rd4 {[%clk 0:00:26]}  Ra2 {[%clk 0:00:09]} 0-1


[Site "https://www.chess.com"]

[Event "Titled Tuesday Blitz August 31 2021"]
[White "Pastar, Slaven"]
[Black "Tsaruk, Maksim"]
[WhiteFideId "14402718"]
[BlackFideId "13511173"]
[WhiteElo "2150"]
[BlackElo "2184"]
[Result "1-0"]
[Round "02"]
[TimeControl "180+1"]
[Date "2021.08.31"]
[WhiteClock "0:00:05"]
[BlackClock "0:00:02"]

1. b3 {[%clk 0:03:00]}  e5 {[%clk 0:02:55]} 2. Bb2 {[%clk 0:03:01]}  Nc6 {[%clk 0:02:56]} 3. Nf3 {[%clk 0:03:02]}  e4 {[%clk 0:02:53]} 4. Nd4 {[%clk 0:03:02]}  Nxd4 {[%clk 0:02:51]} 5. Bxd4 {[%clk 0:03:03]}  d5 {[%clk 0:02:51]} 6. e3 {[%clk 0:03:03]}  Nf6 {[%clk 0:02:52]} 7. c4 {[%clk 0:03:03]}  dxc4 {[%clk 0:02:50]} 8. Bxc4 {[%clk 0:03:03]}  Be7 {[%clk 0:02:51]} 9. Nc3 {[%clk 0:03:02]}  O-O {[%clk 0:02:51]} 10. Qc2 {[%clk 0:03:02]}  Bf5 {[%clk 0:02:49]} 11. O-O {[%clk 0:03:01]}  c5 {[%clk 0:02:49]} 12. Be5 {[%clk 0:02:45]}  Bd6 {[%clk 0:02:34]} 13. Bg3 {[%clk 0:02:20]}  Bxg3 {[%clk 0:02:32]} 14. hxg3 {[%clk 0:02:15]}  Qd6 {[%clk 0:02:30]} 15. Nb5 {[%clk 0:02:08]}  Qc6 {[%clk 0:02:22]} 16. f3 {[%clk 0:01:58]}  Bg6 {[%clk 0:01:51]} 17. f4 {[%clk 0:01:52]}  Bf5 {[%clk 0:01:50]} 18. Nc3 {[%clk 0:01:34]}  Rad8 {[%clk 0:01:42]} 19. Rad1 {[%clk 0:01:23]}  Ng4 {[%clk 0:01:37]} 20. Be2 {[%clk 0:01:22]}  Qh6 {[%clk 0:01:29]} 21. Bxg4 {[%clk 0:01:22]}  Bxg4 {[%clk 0:01:30]} 22. Rc1 {[%clk 0:01:20]}  f5 {[%clk 0:01:30]} 23. Nb5 {[%clk 0:01:05]}  Be2 {[%clk 0:01:27]} 24. Qxc5 {[%clk 0:00:53]}  Bxf1 {[%clk 0:01:24]} 25. Rxf1 {[%clk 0:00:52]}  Rxd2 {[%clk 0:01:21]} 26. Nd4 {[%clk 0:00:37]}  Qg6 {[%clk 0:00:58]} 27. Rf2 {[%clk 0:00:28]}  Rd1+ {[%clk 0:00:52]} 28. Rf1 {[%clk 0:00:28]}  Rxf1+ {[%clk 0:00:52]} 29. Kxf1 {[%clk 0:00:29]}  b6 {[%clk 0:00:42]} 30. Qc4+ {[%clk 0:00:22]}  Qf7 {[%clk 0:00:42]} 31. Qb5 {[%clk 0:00:19]}  g6 {[%clk 0:00:40]} 32. Nc6 {[%clk 0:00:16]}  Rc8 {[%clk 0:00:37]} 33. Ne5 {[%clk 0:00:16]}  Rc1+ {[%clk 0:00:29]} 34. Kf2 {[%clk 0:00:14]}  Qe6 {[%clk 0:00:24]} 35. Qe2 {[%clk 0:00:13]}  Qd5 {[%clk 0:00:22]} 36. g4 {[%clk 0:00:12]}  Rd1 {[%clk 0:00:16]} 37. Kg3 {[%clk 0:00:11]}  Qd2 {[%clk 0:00:14]} 38. Qc4+ {[%clk 0:00:10]}  Qd5 {[%clk 0:00:11]} 39. Qc8+ {[%clk 0:00:10]}  Qd8 {[%clk 0:00:11]} 40. Qc4+ {[%clk 0:00:10]}  Kg7 {[%clk 0:00:06]} 41. Qf7+ {[%clk 0:00:09]}  Kh8 {[%clk 0:00:06]} 42. gxf5 {[%clk 0:00:06]}  Rh1 {[%clk 0:00:04]} 43. f6 {[%clk 0:00:05]}  Qg8 {[%clk 0:00:04]} 44. Qe7 {[%clk 0:00:04]}  h5 {[%clk 0:00:02]} 45. Nf7+ {[%clk 0:00:05]}  Kh7 {[%clk 0:00:02]} 46. Ng5+ {[%clk 0:00:04]}  Kh6 {[%clk 0:00:03]} 47. f7 {[%clk 0:00:04]}  Qc8 {[%clk 0:00:02]} 48. f8=Q+ {[%clk 0:00:05]}  Qxf8 {[%clk 0:00:02]} 49. Qxf8# {[%clk 0:00:05]} 1-0


[Site "https://www.chess.com"]

[Event "Titled Tuesday Blitz August 31 2021"]
[White "Perez Gormaz, Matias"]
[Black "Ibrahimli, Murad"]
[WhiteFideId "3406342"]
[BlackFideId "13410229"]
[WhiteElo "2352"]
[BlackElo "2109"]
[Result "0-1"]
[Round "02"]
[TimeControl "180+1"]
[Date "2021.08.31"]
[WhiteClock "0:00:02"]
[BlackClock "0:00:32"]

1. e4 {[%clk 0:03:00]}  c5 {[%clk 0:02:57]} 2. Nf3 {[%clk 0:03:01]}  d6 {[%clk 0:02:57]} 3. d4 {[%clk 0:03:02]}  cxd4 {[%clk 0:02:58]} 4. Nxd4 {[%clk 0:03:02]}  Nf6 {[%clk 0:02:58]} 5. Nc3 {[%clk 0:03:03]}  a6 {[%clk 0:02:58]} 6. Bg5 {[%clk 0:03:04]}  e6 {[%clk 0:02:57]} 7. f4 {[%clk 0:03:04]}  Qb6 {[%clk 0:02:56]} 8. Nb3 {[%clk 0:03:03]}  h6 {[%clk 0:02:53]} 9. Bxf6 {[%clk 0:03:02]}  gxf6 {[%clk 0:02:53]} 10. Qd2 {[%clk 0:02:52]}  Nc6 {[%clk 0:02:51]} 11. O-O-O {[%clk 0:02:51]}  Bd7 {[%clk 0:02:51]} 12. Be2 {[%clk 0:02:52]}  h5 {[%clk 0:02:51]} 13. Rhf1 {[%clk 0:02:52]}  O-O-O {[%clk 0:02:48]} 14. Kb1 {[%clk 0:02:52]}  Be7 {[%clk 0:02:48]} 15. Rf3 {[%clk 0:02:52]}  Kb8 {[%clk 0:02:47]} 16. Rh3 {[%clk 0:02:25]}  h4 {[%clk 0:02:40]} 17. Qe1 {[%clk 0:02:25]}  f5 {[%clk 0:02:19]} 18. exf5 {[%clk 0:02:23]}  d5 {[%clk 0:02:19]} 19. fxe6 {[%clk 0:02:06]}  Bxe6 {[%clk 0:01:57]} 20. Rhd3 {[%clk 0:02:01]}  d4 {[%clk 0:01:52]} 21. Qf2 {[%clk 0:01:27]}  Bf5 {[%clk 0:01:33]} 22. R3d2 {[%clk 0:01:17]}  Bb4 {[%clk 0:01:17]} 23. Nxd4 {[%clk 0:00:54]}  Rxd4 {[%clk 0:00:32]} 24. Rxd4 {[%clk 0:00:51]}  Bc5 {[%clk 0:00:32]} 25. Na4 {[%clk 0:00:02]}  Bxd4 {[%clk 0:00:32]} 26. Nxb6 {[%clk 0:00:02]}  Bxf2 {[%clk 0:00:32]} 27. Bf3 {[%clk 0:00:02]}  Bxb6 {[%clk 0:00:32]} 0-1


[Site "https://www.chess.com"]

[Event "Titled Tuesday Blitz August 31 2021"]
[White "Postny, Evgeny"]
[Black "Isajevsky, Anton"]
[WhiteFideId "2804344"]
[BlackFideId "4142500"]
[WhiteElo "2521"]
[BlackElo "2510"]
[Result "1-0"]
[Round "02"]
[TimeControl "180+1"]
[Date "2021.08.31"]
[WhiteClock "0:00:36"]
[BlackClock "0:00:08"]

1. e4 {[%clk 0:03:00]}  c5 {[%clk 0:02:59]} 2. Nf3 {[%clk 0:03:00]}  d6 {[%clk 0:02:59]} 3. Bb5+ {[%clk 0:02:58]}  Nd7 {[%clk 0:02:59]} 4. O-O {[%clk 0:02:58]}  a6 {[%clk 0:02:57]} 5. Bd3 {[%clk 0:02:57]}  Ngf6 {[%clk 0:02:56]} 6. c3 {[%clk 0:02:57]}  Ne5 {[%clk 0:02:52]} 7. Nxe5 {[%clk 0:02:53]}  dxe5 {[%clk 0:02:52]} 8. Bc2 {[%clk 0:02:52]}  e6 {[%clk 0:02:39]} 9. a4 {[%clk 0:02:48]}  b6 {[%clk 0:02:38]} 10. Na3 {[%clk 0:02:47]}  Be7 {[%clk 0:02:29]} 11. Nc4 {[%clk 0:02:45]}  Qc7 {[%clk 0:02:28]} 12. a5 {[%clk 0:02:41]}  b5 {[%clk 0:02:27]} 13. Nb6 {[%clk 0:02:41]}  Rb8 {[%clk 0:02:25]} 14. Nxc8 {[%clk 0:02:35]}  Rxc8 {[%clk 0:02:25]} 15. d3 {[%clk 0:02:32]}  O-O {[%clk 0:02:24]} 16. Qe2 {[%clk 0:02:22]}  Rfd8 {[%clk 0:02:22]} 17. f4 {[%clk 0:02:21]}  c4 {[%clk 0:01:44]} 18. fxe5 {[%clk 0:01:59]}  cxd3 {[%clk 0:01:43]} 19. Bxd3 {[%clk 0:02:00]}  Qxe5 {[%clk 0:01:43]} 20. Bf4 {[%clk 0:01:59]}  Qc5+ {[%clk 0:01:21]} 21. Kh1 {[%clk 0:01:50]}  e5 {[%clk 0:01:21]} 22. Be3 {[%clk 0:01:49]}  Qc7 {[%clk 0:01:18]} 23. Bb6 {[%clk 0:01:48]}  Qc6 {[%clk 0:01:12]} 24. Bxd8 {[%clk 0:01:47]}  Rxd8 {[%clk 0:01:13]} 25. Rfd1 {[%clk 0:01:40]}  Nd7 {[%clk 0:01:11]} 26. Bc2 {[%clk 0:01:37]}  Nc5 {[%clk 0:00:59]} 27. Rxd8+ {[%clk 0:01:32]}  Bxd8 {[%clk 0:01:00]} 28. b4 {[%clk 0:01:29]}  Ne6 {[%clk 0:00:59]} 29. Qd3 {[%clk 0:01:17]}  h5 {[%clk 0:00:44]} 30. Bb3 {[%clk 0:01:14]}  Be7 {[%clk 0:00:34]} 31. Rf1 {[%clk 0:01:10]}  h4 {[%clk 0:00:22]} 32. Bxe6 {[%clk 0:00:51]}  Qxe6 {[%clk 0:00:22]} 33. Qd5 {[%clk 0:00:50]}  Qxd5 {[%clk 0:00:17]} 34. exd5 {[%clk 0:00:50]}  g6 {[%clk 0:00:14]} 35. Rd1 {[%clk 0:00:35]}  Bd6 {[%clk 0:00:14]} 36. c4 {[%clk 0:00:35]}  bxc4 {[%clk 0:00:14]} 37. b5 {[%clk 0:00:36]}  axb5 {[%clk 0:00:08]} 38. a6 {[%clk 0:00:37]}  Bc5 {[%clk 0:00:08]} 39. d6 {[%clk 0:00:36]} 1-0


[Site "https://www.chess.com"]

[Event "Titled Tuesday Blitz August 31 2021"]
[White "Rustemov, Alexander"]
[Black "Piesik, Piotr"]
[WhiteFideId "4119002"]
[BlackFideId "1136194"]
[WhiteElo "2772"]
[BlackElo "2395"]
[Result "1-0"]
[Round "02"]
[TimeControl "180+1"]
[Date "2021.08.31"]
[WhiteClock "0:01:50"]
[BlackClock "0:01:54"]

1. d4 {[%clk 0:03:00]}  c5 {[%clk 0:02:59]} 2. d5 {[%clk 0:03:00]}  e5 {[%clk 0:02:59]} 3. c4 {[%clk 0:03:00]}  d6 {[%clk 0:02:59]} 4. Nc3 {[%clk 0:03:01]}  Be7 {[%clk 0:03:00]} 5. e4 {[%clk 0:03:01]}  Bg5 {[%clk 0:03:00]} 6. Bd3 {[%clk 0:02:58]}  Bxc1 {[%clk 0:03:00]} 7. Qxc1 {[%clk 0:02:58]}  Ne7 {[%clk 0:03:01]} 8. Nge2 {[%clk 0:02:45]}  O-O {[%clk 0:03:01]} 9. O-O {[%clk 0:02:44]}  Nd7 {[%clk 0:03:01]} 10. a3 {[%clk 0:02:41]}  Ng6 {[%clk 0:02:59]} 11. b4 {[%clk 0:02:40]}  a5 {[%clk 0:02:58]} 12. bxc5 {[%clk 0:02:21]}  Nxc5 {[%clk 0:02:58]} 13. Qe3 {[%clk 0:02:20]}  f5 {[%clk 0:02:44]} 14. exf5 {[%clk 0:02:17]}  Bxf5 {[%clk 0:02:43]} 15. Bxf5 {[%clk 0:02:17]}  Rxf5 {[%clk 0:02:44]} 16. Ng3 {[%clk 0:02:16]}  Rf4 {[%clk 0:02:43]} 17. Nge4 {[%clk 0:02:16]}  Rc8 {[%clk 0:02:40]} 18. Rfc1 {[%clk 0:02:10]}  Nb3 {[%clk 0:02:39]} 19. g3 {[%clk 0:02:05]}  Rf5 {[%clk 0:02:20]} 20. Nb5 {[%clk 0:02:01]}  Nxa1 {[%clk 0:02:05]} 21. Nbxd6 {[%clk 0:02:01]}  Qd7 {[%clk 0:02:05]} 22. Nxc8 {[%clk 0:01:50]}  Qxc8 {[%clk 0:01:54]} 23. Nd6 {[%clk 0:01:50]} 1-0


[Site "https://www.chess.com"]

[Event "Titled Tuesday Blitz August 31 2021"]
[White "Sadovsky, Artem"]
[Black "Bacrot, Etienne"]
[WhiteFideId "4155840"]
[BlackFideId "605506"]
[WhiteElo "2442"]
[BlackElo "2673"]
[Result "0-1"]
[Round "02"]
[TimeControl "180+1"]
[Date "2021.08.31"]
[WhiteClock "0:01:04"]
[BlackClock "0:00:35"]

1. Nf3 {[%clk 0:03:00]}  d5 {[%clk 0:02:56]} 2. g3 {[%clk 0:03:01]}  Nf6 {[%clk 0:02:56]} 3. Bg2 {[%clk 0:03:02]}  c5 {[%clk 0:02:56]} 4. O-O {[%clk 0:03:03]}  Nc6 {[%clk 0:02:55]} 5. c4 {[%clk 0:03:03]}  d4 {[%clk 0:02:55]} 6. e3 {[%clk 0:03:03]}  e5 {[%clk 0:02:53]} 7. exd4 {[%clk 0:03:04]}  exd4 {[%clk 0:02:54]} 8. Re1+ {[%clk 0:03:05]}  Be7 {[%clk 0:02:54]} 9. d3 {[%clk 0:03:05]}  O-O {[%clk 0:02:53]} 10. Ne5 {[%clk 0:03:05]}  Nxe5 {[%clk 0:02:53]} 11. Rxe5 {[%clk 0:03:06]}  Bd6 {[%clk 0:02:53]} 12. Re1 {[%clk 0:03:05]}  Bg4 {[%clk 0:02:53]} 13. Qb3 {[%clk 0:03:00]}  Re8 {[%clk 0:02:45]} 14. Rxe8+ {[%clk 0:02:38]}  Qxe8 {[%clk 0:02:44]} 15. Bd2 {[%clk 0:02:39]}  Rb8 {[%clk 0:02:43]} 16. Na3 {[%clk 0:02:38]}  Qe2 {[%clk 0:02:16]} 17. Bg5 {[%clk 0:02:01]}  Nd7 {[%clk 0:02:00]} 18. Nb5 {[%clk 0:01:51]}  Bf8 {[%clk 0:01:27]} 19. Bf4 {[%clk 0:01:44]}  Re8 {[%clk 0:01:26]} 20. h3 {[%clk 0:01:36]}  Bf3 {[%clk 0:01:10]} 21. Bf1 {[%clk 0:01:35]}  Qe7 {[%clk 0:01:03]} 22. Nc7 {[%clk 0:01:26]}  Rd8 {[%clk 0:00:47]} 23. Nd5 {[%clk 0:01:10]}  Bxd5 {[%clk 0:00:43]} 24. cxd5 {[%clk 0:01:11]}  Nb6 {[%clk 0:00:44]} 25. Bg2 {[%clk 0:01:04]}  Qd7 {[%clk 0:00:35]} 0-1


[Site "https://www.chess.com"]